bitfinex/quotes_ETHUSD_20251226
["timestamp","ask_amount","ask_price","bid_price","bid_amount"]
[1766759479075,3.36485076,2971.9,2971.1,0.002]
[1766759479274,0.76470683,2971.8,2971.1,0.002]
[1766759479670,0.7109,2971.8,2971.1,0.002]
[1766759480305,0.74942354,2971.8,2971.1,0.002]
[1766759480467,3.36464683,2972.1,2971.1,0.002]
[1766759480468,30.0,2972.0,2971.1,0.002]
[1766759480673,4.12934364,2972.1,2971.1,0.002]
[1766759480674,0.76470683,2972.1,2971.1,0.002]
[1766759480904,0.7109,2972.5,2971.1,1.01725756]
[1766759481094,3.36439794,2972.3,2971.2,0.883]
[1766759481298,0.7109,2972.2,2971.2,0.18666]
[1766759481502,0.7109,2972.2,2971.1,1.01725756]
[1766759481685,6.900567,2972.4,2971.1,1.01725756]
[1766759481890,6.900567,2972.4,2971.2,0.883]
[1766759482123,0.05380683,2971.9,2971.1,0.002]
[1766759482306,0.05380683,2970.3,2969.1,0.9816]
[1766759482475,0.05380683,2970.1,2969.1,1.8646]
[1766759482827,0.04325787,2969.8,2969.1,1.11636475]
[1766759483117,0.05380683,2969.4,2968.7,0.9816]
[1766759483302,0.03366663,2969.3,2968.6,0.03368591]
[1766759483510,0.05380683,2970.7,2968.8,0.9816]
[1766759483511,0.05380683,2970.5,2968.8,0.9816]
[1766759483680,0.05380683,2970.3,2969.0,0.9816]
[1766759483984,0.03366663,2970.2,2969.2,0.9816]
[1766759484177,0.05380683,2971.1,2969.4,0.9816]
[1766759484374,0.05380683,2970.9,2969.6,0.9816]
[1766759484599,0.03366663,2970.8,2969.7,0.91667343]
[1766759484807,0.03366663,2971.0,2969.8,0.9816]
[1766759485112,3.41869322,2971.9,2969.8,0.9816]
[1766759485113,0.7089,2972.2,2970.3,6.7333266]
[1766759485319,4.04257395,2972.4,2970.4,1.01526549]
[1766759485320,14.921395,2971.8,2970.4,1.01526549]
[1766759485611,0.05380683,2971.9,2970.4,1.01526549]
[1766759485795,0.05380683,2971.9,2970.6,0.9816]
[1766759485987,0.05380683,2971.7,2970.7,0.22012209]
[1766759486486,0.05380683,2971.5,2970.1,0.9816]
[1766759486685,0.7586,2971.6,2969.9,0.18982734]
[1766759486686,0.05380683,2971.7,2970.4,0.883]
[1766759486872,0.05380683,2971.7,2970.5,1.01526436]
[1766759487076,0.05380683,2971.9,2970.5,1.01526436]
[1766759487277,0.883,2972.0,2970.6,0.883]
[1766759487514,0.81240683,2972.1,2970.7,1.01526209]
[1766759487716,0.05380683,2971.9,2970.8,0.883]
[1766759487913,9.949672,2971.8,2970.9,0.883]
[1766759488209,0.05380683,2971.9,2970.3,3.36662737]
[1766759488210,20.461942,2971.4,2970.3,0.9816]
[1766759488516,20.461942,2971.4,2969.9,3.5569357]
[1766759488517,0.05380683,2971.5,2970.4,0.03366549]
[1766759488698,0.05380683,2971.3,2970.5,0.03366436]
[1766759489008,0.05380683,2971.1,2970.0,0.883]
[1766759489309,0.05380683,2971.1,2970.1,0.20544273]
[1766759489612,0.05380683,2971.1,2969.9,0.9816]
[1766759489613,0.81240683,2971.1,2970.0,0.03367003]
[1766759489786,0.81070684,2971.1,2970.0,0.03367003]
[1766759489990,0.81070684,2971.1,2969.9,1.8646]
[1766759490499,0.05380683,2970.9,2969.8,0.002]
[1766759490679,2.87901938,2970.8,2969.8,0.002]
[1766759490875,0.05380683,2971.1,2969.8,0.002]
[1766759491081,0.05380683,2971.3,2970.1,0.9816]
[1766759491280,0.05380683,2971.3,2970.2,1.01526776]
[1766759491582,0.7586,2971.4,2970.2,1.01526776]
[1766759491583,0.7586,2971.4,2970.3,0.9816]
[1766759491782,0.93680683,2971.7,2970.5,0.9816]
[1766759492013,0.7586,2971.8,2970.6,0.03366323]
[1766759492214,0.05480683,2972.5,2970.8,0.9816]
[1766759492215,0.7586,2972.3,2970.8,0.9816]
[1766759492520,0.7586,2972.3,2970.7,6.47967674]
[1766759492521,0.7596,2972.8,2971.3,0.9816]
[1766759492685,0.7596,2972.8,2971.7,5.59667674]
[1766759492890,0.17525032,2973.2,2971.8,1.01524963]
[1766759493091,0.001,2973.7,2971.8,1.01524963]
[1766759493448,0.001,2973.7,2972.5,0.9816]
[1766759493744,0.001,2974.0,2972.7,0.9816]
[1766759493889,0.001,2974.0,2972.6,0.9816]
[1766759494090,0.001,2974.0,2972.7,1.01523945]
[1766759494297,8.519722,2973.9,2972.8,0.91663832]
[1766759494495,19.212209,2973.7,2972.3,0.9816]
[1766759494725,2.01736841,2973.6,2972.4,0.03364284]
[1766759495018,0.08740683,2973.6,2972.4,1.01524284]
[1766759495194,0.0336,2973.6,2972.4,1.01524284]
[1766759495394,10.381257,2973.6,2972.4,1.01524284]
[1766759495629,15.903257,2973.7,2972.4,1.01524284]
[1766759495821,1.68311321,2973.6,2972.4,1.01524284]
[1766759496132,30.0,2973.5,2972.4,1.01524284]
[1766759496321,15.258364,2973.3,2971.9,6.57827674]
[1766759496523,0.04204224,2973.2,2972.1,0.9816]
[1766759496691,4.288332,2973.5,2972.2,0.99845975]
[1766759496892,0.47507627,2973.4,2972.2,0.99845975]
[1766759497102,0.04203941,2973.4,2972.2,0.99845975]
[1766759497299,6.935,2973.6,2972.2,6.7458355]
[1766759497540,0.001,2974.0,2972.9,5.59667674]
[1766759497820,3.41511968,2975.1,2973.5,0.9816]
[1766759497821,0.02520484,2974.5,2973.5,0.9816]
[1766759498007,0.001,2974.4,2973.6,0.03362927]
[1766759498319,0.05380683,2975.1,2974.0,0.9816]
[1766759498522,0.05380683,2975.8,2973.6,0.6611906]
[1766759498523,0.001,2975.6,2974.5,0.9816]
[1766759498815,0.05480683,2975.6,2974.5,0.9816]
[1766759499129,0.05380683,2975.8,2974.5,0.9816]
[1766759499130,0.06386447,2975.5,2974.6,0.03361796]
[1766759499420,0.06386447,2974.7,2974.1,0.9816]
[1766759499620,0.06386447,2974.9,2973.5,3.36302272]
[1766759499621,0.06386447,2974.4,2973.5,0.9816]
[1766759499923,0.06386447,2974.9,2973.8,5.59667674]
[1766759500092,0.02517331,2974.8,2973.9,1.01522587]
[1766759500294,0.06386447,2974.9,2973.9,1.01522587]
[1766759500499,0.02517331,2974.8,2973.9,1.01522587]
[1766759501323,0.02517331,2974.8,2974.3,6.57827674]
[1766759501530,0.02517331,2975.2,2974.4,0.03362022]
[1766759501731,0.02517331,2975.1,2974.4,0.03362022]
[1766759501907,0.94686447,2975.3,2974.4,0.03362022]
[1766759502114,0.06724158,2974.9,2973.9,0.9816]
[1766759502297,0.04201963,2974.8,2973.9,0.9816]
[1766759502497,0.04201963,2974.8,2974.0,0.02526042]
[1766759502697,0.04201963,2974.8,2973.9,0.9816]
[1766759502942,0.06724158,2974.7,2973.9,0.9816]
[1766759503233,0.06724158,2974.5,2973.4,0.883]
[1766759503452,0.04202528,2974.4,2974.1,6.57827674]
[1766759503608,0.883,2975.3,2974.2,1.00686169]
[1766759503801,0.04201398,2975.2,2974.3,0.9816]
[1766759504110,0.04200974,2975.5,2974.7,0.9278]
[1766759504418,0.04201115,2975.4,2974.9,0.9278]
[1766759504616,0.94924158,2975.9,2975.1,5.59667674]
[1766759504617,0.04200551,2975.8,2975.1,5.59667674]
[1766759505238,0.07731742,2975.7,2974.6,6.52447674]
[1766759505441,0.07731742,2975.7,2974.1,0.65782767]
[1766759505442,0.07731742,2975.3,2974.2,0.9278]
[1766759505638,0.07731742,2975.3,2973.6,3.36290784]
[1766759505639,7.446751,2974.8,2973.7,0.9278]
[1766759505934,0.11933846,2974.7,2973.8,0.02526509]
[1766759506340,0.04202104,2974.7,2973.8,0.9278]
[1766759506508,0.04201963,2974.8,2973.8,0.9278]
[1766759506708,0.04201963,2974.8,2973.8,0.9530641]
[1766759506934,0.04201963,2974.8,2974.2,0.9278]
[1766759507247,0.04201963,2974.8,2973.7,1.8108]
[1766759507546,0.04201963,2974.8,2973.8,0.95306509]
[1766759507706,0.96031742,2975.5,2974.3,0.9278]
[1766759507926,0.001,2975.5,2974.8,0.9278]
[1766759508124,0.001,2975.5,2975.0,0.9278]
[1766759508560,26.702526,2975.1,2974.0,0.9099]
[1766759508752,2.75530176,2975.0,2974.0,0.9099]
[1766759508953,2.75530176,2975.0,2973.6,1.81816085]
[1766759508954,0.07731742,2974.8,2973.6,1.81816085]
[1766759509155,0.04202104,2974.7,2973.6,0.93516085]
[1766759509347,0.07731742,2975.0,2973.6,0.93516085]
[1766759509548,0.04201821,2974.9,2973.8,0.9099]
[1766759509749,0.0420168,2975.0,2974.0,0.9099]
[1766759509963,0.0420168,2975.0,2974.1,0.0252576]
[1766759510161,0.0420168,2975.0,2974.3,0.9099]
[1766759510457,0.07731742,2975.3,2974.0,5.72913495]
[1766759510660,0.07731742,2975.1,2974.0,5.72913495]
[1766759510972,0.883,2975.5,2974.1,0.9099]
[1766759511266,0.04201115,2975.4,2974.7,0.9099]
[1766759511578,0.001,2975.5,2974.7,0.9099]
[1766759512340,0.001,2975.5,2974.8,0.9099]
[1766759512550,0.04200268,2976.0,2975.3,0.9099]
[1766759512760,0.95931742,2976.8,2975.3,0.9099]
[1766759512761,0.04199986,2976.2,2975.3,0.9099]
[1766759512966,0.07731742,2976.6,2975.3,0.9099]
[1766759513269,0.04199563,2976.5,2975.3,3.36099067]
[1766759513563,0.04199704,2976.4,2975.5,0.9099]
[1766759513770,0.95931742,2976.8,2975.5,0.9099]
[1766759513771,0.04299281,2976.7,2975.5,0.9099]
[1766759514277,0.001,2976.7,2976.4,6.63903495]
[1766759514434,0.001,2976.7,2975.8,0.9099]
[1766759514856,0.07731742,2976.6,2975.8,0.9099]
[1766759515059,23.382219,2976.4,2975.4,0.882]
[1766759515239,23.382219,2976.4,2975.3,6.63903495]
[1766759515240,2.38441991,2976.3,2975.3,6.63903495]
[1766759515555,29.090865,2976.1,2975.3,0.9099]
[1766759515764,0.04200268,2976.0,2975.3,0.9099]
[1766759516076,0.04200127,2976.1,2975.3,0.9099]
[1766759516276,22.323681,2975.9,2974.7,0.9099]
[1766759516438,2.35942277,2975.8,2974.7,0.9099]
[1766759516632,20.489237,2975.5,2974.1,0.9099]
[1766759516937,0.07731742,2975.1,2974.1,0.9099]
[1766759517852,0.0420168,2975.0,2974.1,0.9099]
[1766759518067,0.07731742,2975.4,2974.1,0.9099]
[1766759518269,0.07731742,2975.2,2974.1,0.9099]
[1766759518486,0.04201539,2975.1,2974.1,0.9099]
[1766759518886,0.04201539,2975.1,2972.8,4.27368504]
[1766759518887,0.07731742,2974.7,2972.8,4.27368504]
[1766759519086,0.07731742,2974.5,2973.0,0.9099]
[1766759519271,0.92402528,2974.4,2973.0,0.9099]
[1766759519797,0.92402528,2974.4,2973.1,0.9099]
[1766759520259,0.04202669,2974.3,2973.1,0.9099]
[1766759520460,0.04202669,2974.3,2973.3,0.9099]
[1766759520773,0.002,2974.1,2973.5,0.9099]
[1766759521294,0.002,2974.1,2973.6,0.9099]
[1766759521990,0.002,2974.1,2972.2,0.9099]
[1766759522159,0.002,2974.1,2973.2,0.9099]
[1766759522890,0.04402952,2974.1,2973.2,0.9099]
[1766759523098,0.002,2974.1,2973.3,3.36326306]
[1766759523267,0.002,2974.1,2973.7,0.9099]
[1766759523593,0.882,2975.1,2973.8,0.9099]
[1766759523761,0.002,2975.3,2974.0,0.9099]
[1766759524362,0.882,2976.0,2974.6,0.9099]
[1766759524677,0.07731742,2976.9,2974.8,0.9099]
[1766759524678,0.001,2976.7,2974.8,0.9099]
[1766759524893,0.001,2976.7,2975.2,0.9099]
[1766759525080,0.001,2976.7,2976.2,0.05219628]
[1766759525463,0.001,2976.7,2976.2,0.96209628]
[1766759525697,0.71379704,2977.4,2976.3,0.94349876]
[1766759525900,0.04198434,2977.3,2976.4,0.03359763]
[1766759526192,0.04198434,2977.3,2976.2,0.05219628]
[1766759526193,30.0,2977.2,2976.2,0.05219628]
[1766759526363,3.13123476,2977.1,2975.7,0.9099]
[1766759526563,30.0,2977.0,2975.7,0.9099]
[1766759526799,6.664287,2976.8,2975.0,0.882]
[1766759527013,4.058,2976.6,2975.0,0.91561344]
[1766759527192,0.04199563,2976.5,2975.2,0.9099]
[1766759527372,0.0419914,2976.8,2975.4,0.9099]
[1766759527567,0.07731742,2976.9,2975.5,0.94350779]
[1766759527769,8.099623,2976.7,2975.5,0.94350779]
[1766759528005,0.34364211,2976.8,2975.5,0.94350779]
[1766759528306,0.07731742,2978.2,2975.5,0.94350779]
[1766759528307,0.881,2977.4,2975.6,0.9099]
[1766759528473,0.881,2977.4,2975.8,0.9099]
[1766759528474,0.04198434,2977.3,2975.8,0.9099]
[1766759528673,0.881,2977.4,2976.0,0.9099]
[1766759528878,0.002,2976.9,2976.2,0.9099]
[1766759529204,0.002,2977.6,2976.4,0.9099]
[1766759529498,0.002,2977.6,2976.7,0.9099]
[1766759529796,0.002,2977.6,2976.9,0.9099]
[1766759530001,0.002,2977.6,2977.0,0.03359086]
[1766759530585,0.002,2977.6,2976.3,3.35977176]
[1766759530785,0.002,2977.6,2976.5,0.9099]
[1766759530990,0.002,2977.6,2976.7,0.9099]
[1766759531289,0.001,2977.9,2976.9,0.9099]
[1766759531626,0.001,2977.9,2976.8,0.00832176]
[1766759531627,0.002,2978.8,2977.4,0.9099]
[1766759531826,0.002,2978.8,2977.6,0.9099]
[1766759531988,0.002,2978.8,2977.7,0.91819257]
[1766759532296,0.002,2978.8,2977.8,0.91819102]
[1766759532725,0.002,2978.8,2978.0,0.9099]
[1766759533034,0.002,2978.8,2978.2,0.9099]
[1766759533186,0.002,2978.8,2977.7,0.9099]
[1766759533390,0.002,2978.8,2977.9,0.9099]
[1766759533626,0.002,2978.8,2978.0,0.00828793]
[1766759533831,0.002,2978.8,2977.9,0.9099]
[1766759534041,0.002,2978.8,2978.0,0.00828793]
[1766759534321,30.07731742,2978.7,2977.1,0.9629]
[1766759534618,30.07731742,2978.5,2977.1,0.9629]
[1766759534824,30.0,2978.2,2977.1,0.9629]
[1766759535022,18.421665,2978.0,2976.5,0.9629]
[1766759535192,26.945357,2977.8,2976.5,0.9629]
[1766759535389,18.477415,2977.6,2976.5,0.9629]
[1766759535594,1.89392089,2977.5,2976.5,0.9629]
[1766759535788,0.07731742,2978.3,2976.6,0.9629]
[1766759535789,2.0,2978.3,2976.6,0.9629]
[1766759535994,0.04197166,2978.2,2976.6,0.9629]
[1766759536194,0.04197025,2978.3,2976.6,0.9629]
[1766759536439,0.07731742,2978.9,2976.8,0.9629]
[1766759536739,0.04197025,2978.3,2977.0,0.9629]
[1766759537232,30.11928767,2978.3,2977.0,0.9629]
[1766759537437,30.11928767,2978.3,2977.0,1e-08]
[1766759537438,25.730371,2978.0,2977.0,1e-08]
[1766759537595,0.07731742,2978.1,2976.4,0.9629]
[1766759537596,4.058,2977.8,2976.4,0.9629]
[1766759537799,0.45197629,2977.7,2976.4,1.14739]
[1766759538039,3.496358,2978.2,2976.4,1.14739]
[1766759538371,0.11928767,2978.3,2976.4,1.14739]
[1766759538372,0.04197307,2978.1,2976.4,1.14739]
[1766759538571,0.04197166,2978.2,2976.4,1.14739]
[1766759538737,0.4777523,2978.2,2976.6,0.9629]
[1766759539140,4.032698,2978.6,2976.6,0.9629]
[1766759539344,0.04196743,2978.5,2976.6,0.9629]
[1766759539539,14.032648,2978.5,2976.6,0.9629]
[1766759539755,0.002,2978.7,2977.0,0.9629]
[1766759539928,0.04396461,2978.7,2977.2,0.9629]
[1766759540129,0.002,2978.7,2977.6,0.9629]
[1766759540329,0.002,2978.8,2977.8,0.9629]
[1766759540778,0.002,2979.2,2978.2,0.9629]
[1766759540982,0.002,2979.2,2978.4,0.9629]
[1766759541266,0.17709413,2979.9,2977.7,0.3244032]
[1766759541267,0.04195053,2979.7,2978.6,0.9629]
[1766759541479,30.0,2979.8,2978.6,0.9629]
[1766759541685,4.058,2979.8,2978.6,0.9629]
[1766759541829,0.002,2979.9,2978.8,0.9629]
[1766759542031,0.04394771,2979.9,2978.8,0.9629]
[1766759542330,0.04394771,2979.9,2978.9,1.8449]
[1766759542658,0.002,2979.9,2979.0,0.9629]
[1766759543033,0.002,2979.9,2979.1,0.881]
[1766759543533,0.002,2979.9,2979.2,0.9629]
[1766759544343,0.04394771,2979.9,2979.2,0.9629]
[1766759544543,0.002,2979.9,2979.3,0.9629]
[1766759545960,0.04394771,2979.9,2979.3,0.9629]
[1766759546164,0.002,2979.9,2979.3,0.9629]
[1766759546662,0.002,2979.9,2979.4,0.9629]
[1766759547662,0.002,2979.9,2978.9,0.881]
[1766759547865,0.002,2979.9,2978.9,4.23786038]
[1766759548059,0.002,2979.9,2979.0,0.9629]
[1766759548840,0.002,2979.9,2979.0,1.8439]
[1766759549664,0.002,2979.9,2979.1,0.9629]
[1766759549963,0.002,2979.9,2979.2,0.9629]
[1766759551157,0.002,2979.9,2979.3,1.8439]
[1766759551470,0.002,2979.9,2979.4,0.9629]
[1766759552468,0.002,2979.9,2978.9,0.9629]
[1766759552676,0.04394771,2979.9,2979.0,0.881]
[1766759554355,0.04394771,2979.9,2978.9,0.9629]
[1766759554557,0.04394771,2979.9,2978.9,1.8439]
[1766759554779,0.04394771,2979.9,2978.9,0.9629]
[1766759555242,0.04394771,2979.9,2977.7,0.9629]
[1766759555243,28.68346,2979.8,2977.7,0.9629]
[1766759555440,3.41413452,2979.7,2978.1,0.9629]
[1766759555694,0.04195193,2979.6,2978.1,0.9629]
[1766759555890,0.88,2979.8,2978.3,4.7609074]
[1766759556092,0.88,2979.8,2978.5,0.9629]
[1766759556093,0.04195053,2979.7,2978.5,0.9629]
[1766759556243,0.04195053,2979.7,2978.3,0.881]
[1766759556244,13.016634,2979.6,2978.3,0.881]
[1766759556438,0.04195334,2979.5,2978.3,0.881]
[1766759556744,0.04195475,2979.4,2978.4,0.9629]
[1766759557048,0.04195053,2979.7,2978.5,0.9629]
[1766759557443,0.04195053,2979.7,2978.5,1.8439]
[1766759557980,0.04195053,2979.7,2978.5,0.9629]
[1766759558144,0.04195053,2979.7,2978.5,0.71657845]
[1766759558347,0.002,2979.9,2978.8,0.9629]
[1766759558554,0.04394771,2979.9,2978.8,0.9629]
[1766759558974,0.04394771,2979.9,2978.9,0.03356943]
[1766759559178,0.002,2979.9,2978.9,0.03356943]
[1766759559344,0.04394771,2979.9,2978.9,0.03356943]
[1766759559550,0.04394771,2979.9,2978.8,0.9629]
[1766759559742,0.04394771,2979.9,2978.9,0.03356943]
[1766759559945,0.002,2979.7,2978.9,0.03356943]
[1766759560383,0.002,2979.7,2978.9,0.9629]
[1766759561543,0.002,2979.7,2978.5,0.71657845]
[1766759561809,0.002,2979.7,2978.4,0.001]
[1766759561810,30.0,2979.6,2978.4,0.9639]
[1766759561948,3.04634839,2979.5,2978.4,0.9639]
[1766759562279,30.0,2979.4,2978.1,0.881]
[1766759562586,0.04195616,2979.3,2978.1,0.881]
[1766759562760,30.0,2979.3,2978.1,0.881]
[1766759562963,0.04195757,2979.2,2978.1,0.881]
[1766759563166,0.04195898,2979.1,2978.0,0.9629]
[1766759563363,3.0041959,2979.1,2978.0,0.9629]
[1766759563566,0.04196038,2979.0,2978.0,0.9629]
[1766759563858,30.0,2979.2,2978.0,0.9629]
[1766759564071,0.04195898,2979.1,2978.0,0.9629]
[1766759564260,17.989684,2979.0,2977.6,0.001]
[1766759564469,15.226184,2978.8,2977.6,0.001]
[1766759564648,1.56877919,2978.7,2977.6,0.001]
[1766759564855,0.04196461,2978.7,2977.6,0.001]
[1766759565183,26.657627,2978.8,2977.6,0.03458409]
[1766759565348,0.04196461,2978.7,2977.6,0.03458409]
[1766759565550,15.59664,2979.0,2977.6,0.94538409]
[1766759565797,16.470519,2978.8,2977.6,0.94538409]
[1766759565955,7.59351198,2979.1,2977.6,0.94538409]
[1766759565956,0.04196461,2978.7,2977.6,0.03458409]
[1766759566155,3.35705653,2978.8,2976.7,0.9108]
[1766759566465,30.0,2978.6,2976.7,0.9108]
[1766759566674,30.0,2978.4,2976.8,0.03359312]
[1766759566988,30.0,2978.2,2976.8,0.03359312]
[1766759567209,0.04197307,2978.1,2976.8,0.03359312]
[1766759567355,30.0,2978.0,2976.4,0.001]
[1766759567556,0.04197588,2977.9,2976.4,0.91559763]
[1766759567777,0.04197588,2977.9,2975.2,0.2]
[1766759567778,30.0,2978.1,2975.8,0.9108]
[1766759568107,0.07731742,2977.6,2975.8,0.9108]
[1766759568376,0.07731742,2977.6,2974.9,5.39920194]
[1766759568377,30.0,2977.3,2975.1,0.07731742]
[1766759568553,30.0,2977.1,2975.3,0.9088]
[1766759568760,30.0,2976.9,2975.3,0.9088]
[1766759568980,21.490174,2976.7,2975.4,0.03360892]
[1766759569175,29.202725,2976.5,2975.3,0.9088]
[1766759569361,29.202725,2976.5,2974.6,5.32288452]
[1766759569362,2.96646098,2976.4,2975.2,0.001]
[1766759569573,9.725968,2976.3,2975.2,0.001]
[1766759569792,0.04198953,2976.2,2975.2,0.001]
[1766759569964,23.640872,2976.6,2975.2,0.001]
[1766759570169,10.963209,2976.4,2975.2,0.001]
[1766759570383,14.296821,2976.2,2975.2,0.001]
[1766759570587,0.04198953,2976.1,2975.2,0.001]
[1766759570782,0.04198953,2976.2,2975.2,0.001]
[1766759570978,0.04198953,2976.1,2975.2,0.001]
[1766759571182,0.07731742,2977.0,2975.2,0.001]
[1766759571183,6.817302,2977.1,2975.3,0.9108]
[1766759571492,1.61145051,2977.0,2975.5,0.9108]
[1766759571696,5.36898953,2976.9,2975.7,0.9108]
[1766759571862,26.342954,2976.8,2975.8,0.9444044]
[1766759572064,0.04198953,2976.7,2975.8,0.0336044]
[1766759572264,0.92198857,2977.0,2975.7,0.03360553]
[1766759572480,30.42810512,2976.9,2975.7,0.03360553]
[1766759572787,30.42810512,2976.9,2975.2,3.3620922]
[1766759572788,0.04198953,2976.8,2975.6,0.94440666]
[1766759572965,0.04198953,2976.8,2975.7,0.9108]
[1766759573164,3.508361,2976.9,2975.8,0.9444044]
[1766759573359,3.43577707,2977.6,2975.8,0.9444044]
[1766759573573,22.040939,2977.4,2975.8,0.9444044]
[1766759573772,20.462592,2977.2,2975.8,0.9444044]
[1766759573984,26.391632,2977.0,2975.8,0.9444044]
[1766759574162,0.04198953,2976.9,2975.9,0.9108]
[1766759574369,2.0,2977.3,2976.1,0.9108]
[1766759574696,0.42384597,2977.4,2976.3,0.9108]
[1766759574697,0.04198575,2977.2,2976.3,0.9108]
[1766759574862,0.04198434,2977.3,2976.3,0.9108]
[1766759575066,0.04198434,2977.3,2976.4,0.03359763]
[1766759575263,0.07731742,2978.4,2976.4,0.94439763]
[1766759575576,22.889593,2978.2,2976.4,0.94439763]
[1766759575765,0.88,2978.3,2976.4,0.94439763]
[1766759575766,17.611069,2978.0,2976.6,0.9108]
[1766759575961,17.611069,2978.0,2976.7,0.94439424]
[1766759576294,0.04197588,2977.9,2976.8,0.881]
[1766759576606,0.04197447,2978.0,2976.9,0.9108]
[1766759576788,0.04197588,2977.9,2977.0,0.03359086]
[1766759576968,14.737707,2978.1,2977.0,0.03359086]
[1766759577167,0.04397447,2978.0,2977.0,0.03359086]
[1766759577466,0.002,2978.0,2977.0,0.94439086]
[1766759577978,0.002,2978.0,2977.1,1.7918]
[1766759578181,0.002,2978.0,2977.2,0.17918]
[1766759578614,0.002,2978.0,2977.3,0.03358747]
[1766759578766,15.542912,2977.9,2976.6,1.7918]
[1766759578962,0.04197729,2977.8,2976.6,1.7918]
[1766759579171,0.002,2978.0,2977.0,3.35908318]
[1766759579381,0.002,2978.0,2977.1,0.91918716]
[1766759580498,0.002,2978.0,2977.2,0.9108]
[1766759580696,0.002,2978.0,2977.4,0.9108]
[1766759580874,2.603881,2977.9,2976.7,0.9108]
[1766759581079,0.2605881,2977.8,2976.9,0.9108]
[1766759581396,0.002,2978.0,2977.1,0.9108]
[1766759581712,0.002,2978.0,2977.2,0.00838562]
[1766759582004,0.04397447,2978.0,2977.2,0.91918562]
[1766759582371,0.04397447,2978.0,2977.0,0.881]
[1766759582565,0.04397447,2978.0,2976.8,0.9108]
[1766759582766,29.789286,2977.9,2976.1,0.9108]
[1766759583009,30.0,2977.7,2976.1,0.9108]
[1766759583163,3.45611181,2977.8,2976.1,0.9108]
[1766759583164,30.0,2977.5,2976.1,0.9108]
[1766759583363,18.952741,2977.3,2976.1,0.9108]
[1766759583599,0.04198575,2977.2,2975.3,4.77592352]
[1766759583787,30.0,2977.2,2975.4,1.80022372]
[1766759583970,21.97212,2977.3,2975.5,0.9108]
[1766759584168,26.120775,2977.1,2975.6,0.91921934]
[1766759584579,30.0,2976.9,2975.3,0.001]
[1766759584880,20.91271,2976.7,2975.3,0.001]
[1766759585068,19.680844,2976.5,2975.3,0.001]
[1766759585271,2.01428086,2976.4,2975.3,0.001]
[1766759585467,0.04199422,2976.6,2975.6,0.9108]
[1766759585763,2.02915,2977.2,2975.8,0.9108]
[1766759585991,0.04198716,2977.1,2975.8,0.9108]
[1766759586202,0.04398152,2977.5,2975.8,0.9108]
[1766759586385,18.809019,2977.4,2976.0,0.9108]
[1766759586698,0.002,2977.5,2976.1,0.9108]
[1766759586925,0.04398152,2977.5,2976.1,0.9108]
[1766759587208,0.04398152,2977.5,2976.3,0.9108]
[1766759587410,0.04398152,2977.5,2976.5,0.9108]
[1766759587809,0.04398152,2977.5,2976.2,0.76312168]
[1766759587995,30.0,2977.4,2976.0,1.7918]
[1766759588308,0.04198434,2977.3,2976.0,1.7918]
[1766759588509,0.002,2977.5,2976.0,1.7918]
[1766759588510,30.0,2977.4,2976.0,1.7918]
[1766759588717,30.0,2977.4,2975.9,3.5395065]
[1766759588718,0.04198434,2977.3,2976.1,0.9108]
[1766759588889,0.04198575,2977.2,2976.1,0.9108]
[1766759589205,3.4006332,2977.4,2976.1,0.9108]
[1766759589395,30.0,2977.2,2975.4,0.9108]
[1766759589584,30.0,2977.0,2975.4,0.9108]
[1766759589790,30.0,2976.8,2975.4,0.9108]
[1766759589991,30.0,2976.6,2975.4,0.9108]
[1766759590181,22.415116,2976.4,2975.3,0.001]
[1766759590381,0.88,2976.9,2974.8,0.9108]
[1766759590382,17.695226,2976.2,2974.8,0.9108]
[1766759590678,7.442073,2976.0,2974.8,0.9108]
[1766759590882,0.04200409,2975.9,2974.8,0.9108]
[1766759591105,11.030833,2976.0,2974.8,0.9108]
[1766759591282,0.04200409,2975.9,2974.8,0.9108]
[1766759591707,0.04200268,2976.0,2974.8,0.9108]
[1766759591885,30.0,2975.9,2974.8,0.9108]
[1766759592085,6.72025126,2976.1,2974.3,0.9108]
[1766759592086,20.61166,2975.7,2974.3,0.9108]
[1766759592292,0.92200833,2975.6,2974.3,0.9108]
[1766759592531,3.36089265,2975.4,2974.1,0.001]
[1766759592682,3.36089265,2975.4,2973.8,0.9108]
[1766759592683,30.0,2975.2,2973.8,0.9108]
[1766759592879,23.113556,2975.0,2973.8,0.9108]
[1766759593140,13.906419,2974.8,2973.5,0.001]
[1766759593279,30.0,2974.6,2973.5,0.001]
[1766759593479,3.04622596,2974.5,2973.5,0.001]
[1766759593712,3.04622596,2974.5,2973.3,0.9108]
[1766759593713,0.88,2974.4,2973.3,0.9108]
[1766759594015,0.04202669,2974.3,2973.3,0.9108]
[1766759594187,0.04202669,2974.3,2972.9,0.001]
[1766759594397,0.04202669,2974.3,2972.9,0.9138]
[1766759595514,0.42840701,2974.2,2972.9,0.9138]
[1766759595715,0.04202952,2974.1,2972.9,0.9138]
[1766759595907,30.0,2974.2,2972.9,0.9138]
[1766759596097,0.04202952,2974.1,2972.9,0.9138]
[1766759596296,30.0,2974.2,2972.9,0.9138]
[1766759596493,0.04202669,2974.3,2972.9,0.9138]
[1766759596494,0.04202952,2974.1,2972.9,3.36470754]
[1766759596791,0.04203093,2974.0,2973.2,0.9128]
[1766759597015,0.04202669,2974.3,2973.2,0.9128]
[1766759597197,0.88,2974.4,2973.2,0.9128]
[1766759597408,0.04202669,2974.3,2973.2,0.9128]
[1766759598221,0.42841266,2974.2,2972.9,0.001]
[1766759598409,0.04202952,2974.1,2972.9,0.001]
[1766759598616,30.0,2974.3,2972.9,0.001]
[1766759598929,30.0,2974.1,2972.9,0.001]
[1766759599089,30.0,2973.9,2972.3,0.001]
[1766759599419,0.07731742,2974.2,2972.3,0.001]